fUST/lending_fUST_20250831
["ID","MTS","AMOUNT","RATE_DAILY","PERIOD"]
[382452283,1756629046924,-482.10584631,0.00018484,2]
[382452284,1756629046939,-1263.56,0.00018484,2]
[382452285,1756629046948,-895.73,0.00018485,2]
[382452286,1756629046958,-378.2018314,0.00018487,2]
[382452287,1756629046967,-481.2359682,0.00018487,2]
[382452288,1756629046976,-480.0,0.00018487,2]
[382452289,1756629046985,-745.44265399,0.00018487,2]
[382452290,1756629047071,-36.10734601,0.00018487,2]
[382452291,1756629047081,-480.0,0.00018487,2]
[382452292,1756629047091,-663.81,0.00018487,2]
[382452293,1756629047100,-480.0,0.00018487,2]
[382452294,1756629047109,-621.45,0.00018487,2]
[382452295,1756629047119,-481.54439845,0.00018487,2]
[382452296,1756629047128,-901.3,0.00018487,2]
[382452297,1756629047138,-480.0,0.00018487,2]
[382452298,1756629047147,-480.0,0.00018487,2]
[382452299,1756629047158,-480.0,0.00018487,2]
[382452300,1756629047167,-480.0,0.00018487,2]
[382452301,1756629047176,-480.0,0.00018487,2]
[382452302,1756629047185,-480.0,0.00018487,2]
[382452303,1756629047195,-480.0,0.00018487,2]
[382452304,1756629047205,-480.0,0.00018487,2]
[382452305,1756629047215,-480.0,0.00018487,2]
[382452306,1756629047394,-947.24,0.00018487,2]
[382452307,1756629047410,-480.0,0.00018487,2]
[382452308,1756629047419,-481.0826611,0.00018487,2]
[382452309,1756629047431,-480.0,0.00018487,2]
[382452310,1756629047441,-480.0,0.00018487,2]
[382452311,1756629047451,-480.75871807,0.00018487,2]
[382452312,1756629047463,-480.0,0.00018487,2]
[382452313,1756629047474,-480.0,0.00018487,2]
[382452314,1756629047483,-480.0,0.00018487,2]
[382452315,1756629047492,-480.0,0.00018487,2]
[382452316,1756629047503,-597.59,0.00018487,2]
[382452317,1756629047515,-480.0,0.00018487,2]
[382452318,1756629047525,-575.63,0.00018487,2]
[382452319,1756629047534,-480.0,0.00018487,2]
[382452320,1756629047545,-480.0,0.00018487,2]
[382452321,1756629047554,-1121.83,0.00018487,2]
[382452322,1756629047563,-480.0,0.00018487,2]
[382452323,1756629047572,-524.26,0.00018487,2]
[382452324,1756629047581,-480.76498137,0.00018487,2]
[382452325,1756629047591,-480.0,0.00018487,2]
[382452326,1756629047601,-413.10435872,0.00018487,2]
[382452327,1756629047610,-480.0,0.00018487,2]
[382452328,1756629047619,-480.0,0.00018487,2]
[382452329,1756629047628,-485.54570667,0.00018487,2]
[382452330,1756629047638,-480.0,0.00018487,2]
[382452331,1756629047647,-1040.41,0.00018487,2]
[382452332,1756629047657,-480.94749815,0.00018487,2]
[382452333,1756629047666,-480.0,0.00018487,2]
[382452334,1756629047675,-481.73025748,0.00018487,2]
[382452335,1756629047684,-480.75864806,0.00018487,2]
[382452336,1756629047694,-480.0,0.00018487,2]
[382452337,1756629047703,-480.0,0.00018487,2]
[382452338,1756629047712,-247.34450905,0.00018487,2]
[382452339,1756629047721,-480.0,0.00018487,2]
[382452340,1756629047730,-1390.42,0.00018487,2]
[382452341,1756629047740,-480.0,0.00018487,2]
[382452342,1756629047750,-862.27,0.00018487,2]
[382452343,1756629047759,-480.35264517,0.00018487,2]
[382452344,1756629047768,-517.25,0.00018487,2]
[382452345,1756629047780,-480.0,0.00018487,2]
[382452346,1756629047788,-480.0,0.00018487,2]
[382452347,1756629047797,-1344.33,0.00018487,2]
[382452348,1756629047807,-480.0,0.00018487,2]
[382452349,1756629047816,-480.0,0.00018487,2]
[382452350,1756629047825,-480.091267,0.00018487,2]
[382452351,1756629047834,-500.35,0.00018487,2]
[382452352,1756629047843,-480.0,0.00018487,2]
[382452353,1756629047852,-480.0,0.00018487,2]
[382452354,1756629047861,-480.0,0.00018487,2]
[382452355,1756629047871,-1338.74,0.00018487,2]
[382452356,1756629047880,-693.96,0.00018487,2]
[382452357,1756629047889,-481.84094526,0.00018487,2]
[382452358,1756629047899,-480.0,0.00018487,2]
[382452359,1756629047908,-480.0,0.00018487,2]
[382452360,1756629047918,-480.0,0.00018487,2]
[382452361,1756629047928,-480.0,0.00018487,2]
[382452362,1756629047938,-480.0,0.00018487,2]
[382452363,1756629047948,-480.88613195,0.00018487,2]
[382452364,1756629047958,-480.0,0.00018487,2]
[382452365,1756629047967,-480.50095855,0.00018487,2]
[382452366,1756629047976,-750.48,0.00018487,2]
[382452367,1756629047985,-480.79444021,0.00018487,2]
[382452368,1756629047994,-618.33,0.00018487,2]
[382452369,1756629048003,-480.0,0.00018487,2]
[382452370,1756629048012,-480.0,0.00018487,2]
[382452371,1756629048021,-480.0,0.00018487,2]
[382452372,1756629048032,-481.11973474,0.00018487,2]
[382452373,1756629048041,-480.0,0.00018487,2]
[382452374,1756629048050,-480.0,0.00018487,2]
[382452375,1756629048059,-480.0,0.00018487,2]
[382452376,1756629048070,-480.79960668,0.00018487,2]
[382452377,1756629048079,-462.68337561,0.00018487,2]
[382452378,1756629048088,-761.07,0.00018487,2]
[382452379,1756629048098,-480.56429735,0.00018487,2]
[382452380,1756629048107,-499.18,0.00018487,2]
[382452381,1756629048117,-480.96524058,0.00018487,2]
[382452382,1756629048126,-480.0,0.00018487,2]
[382452383,1756629048136,-480.0,0.00018487,2]
[382452384,1756629048146,-480.81097766,0.00018487,2]
[382452385,1756629048155,-480.0,0.00018487,2]
[382452386,1756629048164,-480.0,0.00018487,2]
[382452387,1756629048173,-480.90708496,0.00018487,2]
[382452388,1756629048183,-480.0,0.00018487,2]
[382452389,1756629048193,-480.0,0.00018487,2]
[382452390,1756629048203,-480.0,0.00018487,2]
[382452391,1756629048213,-561.36835739,0.00018487,2]
[382452392,1756629048223,-482.75349093,0.00018487,2]
[382452393,1756629048232,-533.62085863,0.00018487,2]
[382452394,1756629048242,-480.0,0.00018487,2]
[382452395,1756629048252,-480.6296672,0.00018487,2]
[382452396,1756629048263,-480.0,0.00018487,2]
[382452397,1756629048273,-480.0,0.00018487,2]
[382452398,1756629048282,-480.0,0.00018487,2]
[382452399,1756629048292,-500.0,0.00018487,2]
[382452400,1756629048302,-500.0,0.00018487,2]
[382452401,1756629048311,-500.0,0.00018487,2]
[382452402,1756629048320,-500.0,0.00018487,2]
[382452403,1756629048330,-500.0,0.00018487,2]
[382452404,1756629048339,-500.0,0.00018487,2]
[382452405,1756629048349,-500.0,0.00018487,2]
[382452406,1756629048360,-601.61,0.00018487,2]
[382452407,1756629048370,-480.0,0.00018487,2]
[382452408,1756629048380,-480.0,0.00018487,2]
[382452409,1756629048390,-379.62404272,0.00018487,2]
[382452410,1756629048399,-480.0,0.00018487,2]
[382452411,1756629048409,-480.0,0.00018487,2]
[382452412,1756629048419,-482.71268115,0.00018487,2]
[382452413,1756629048429,-480.87727401,0.00018487,2]
[382452414,1756629048438,-482.49563682,0.00018487,2]
[382452415,1756629048448,-306.41693775,0.00018487,2]
[382452416,1756629048457,-481.00403714,0.00018487,2]
[382452417,1756629048466,-480.0,0.00018487,2]
[382452418,1756629048477,-481.56139799,0.00018487,2]
[382452419,1756629048486,-497.17,0.00018487,2]
[382452420,1756629048495,-480.0,0.00018487,2]
[382452421,1756629048504,-480.0,0.00018487,2]
[382452422,1756629048514,-151.0,0.00018487,2]
[382452423,1756629048524,-480.95950534,0.00018487,2]
[382452424,1756629048534,-480.0,0.00018487,2]
[382452425,1756629048543,-590.98,0.00018487,2]
[382452426,1756629048553,-484.71151407,0.00018487,2]
[382452427,1756629048562,-560.76,0.00018487,2]
[382452428,1756629048572,-480.0,0.00018487,2]
[382452429,1756629048582,-480.0,0.00018487,2]
[382452430,1756629048592,-558.72,0.00018487,2]
[382452431,1756629048601,-480.24274327,0.00018487,2]
[382452432,1756629048611,-480.0,0.00018487,2]
[382452433,1756629048620,-481.23899459,0.00018487,2]
[382452434,1756629048629,-480.0,0.00018487,2]
[382452435,1756629048639,-480.0,0.00018487,2]
[382452436,1756629048648,-528.68,0.00018487,2]
[382452437,1756629048658,-364.85170976,0.00018487,2]
[382452438,1756629048667,-480.0,0.00018487,2]
[382452439,1756629048677,-469.24731808,0.00018487,2]
[382452440,1756629048686,-481.74587096,0.00018487,2]
[382452441,1756629048695,-480.0,0.00018487,2]
[382452442,1756629048705,-625.87,0.00018487,2]
[382452443,1756629048714,-480.0,0.00018487,2]
[382452444,1756629048724,-480.0,0.00018487,2]
[382452445,1756629048733,-464.11170487,0.00018487,2]
[382452446,1756629048742,-770.47,0.00018487,2]
[382452447,1756629048751,-480.0,0.00018487,2]
[382452448,1756629048761,-847.67,0.00018487,2]
[382452449,1756629048771,-480.0,0.00018487,2]
[382452450,1756629048781,-534.85,0.00018487,2]
[382452451,1756629048791,-480.0,0.00018487,2]
[382452452,1756629048800,-480.0,0.00018487,2]
[382452453,1756629048810,-413.91083516,0.00018487,2]
[382452454,1756629048819,-482.17195698,0.00018487,2]
[382452455,1756629048829,-480.0,0.00018487,2]
[382452456,1756629048838,-480.0,0.00018487,2]
[382452457,1756629048848,-480.0,0.00018487,2]
[382452458,1756629048857,-480.0,0.00018487,2]
[382452459,1756629048867,-1278.31,0.00018487,2]
[382452460,1756629048876,-1078.64,0.00018487,2]
[382452461,1756629048886,-481.08147872,0.00018487,2]
[382452462,1756629048895,-481.06866395,0.00018487,2]
[382452463,1756629048905,-480.0,0.00018487,2]
[382452464,1756629048914,-480.0,0.00018487,2]
[382452465,1756629048924,-1860.45,0.00018487,2]
[382452466,1756629048933,-480.0,0.00018487,2]
[382452467,1756629048943,-1873.02,0.00018487,2]
[382452468,1756629048952,-480.0,0.00018487,2]
[382452469,1756629048962,-480.59503203,0.00018487,2]
[382452470,1756629048972,-580.01,0.00018487,2]
[382452471,1756629048982,-480.0,0.00018487,2]
[382452472,1756629048993,-480.0,0.00018487,2]
[382452473,1756629049004,-480.0,0.00018487,2]
[382452474,1756629049013,-480.0,0.00018487,2]
[382452475,1756629049022,-593.038275,0.00018487,2]
[382452476,1756629049032,-895.5,0.00018487,2]
[382452477,1756629049041,-480.0,0.00018487,2]
[382452478,1756629049051,-480.0,0.00018487,2]
[382452479,1756629049060,-214.72101261,0.00018487,2]
[382452480,1756629049070,-702.73,0.00018487,2]
[382452481,1756629049079,-694.13,0.00018487,2]
[382452482,1756629049088,-480.0,0.00018487,2]
[382452483,1756629049097,-460.76882647,0.00018487,2]
[382452484,1756629049107,-480.0,0.00018487,2]
[382452485,1756629049117,-480.0,0.00018487,2]
[382452486,1756629049127,-480.0,0.00018487,2]
[382452487,1756629049137,-480.0,0.00018487,2]
[382452488,1756629049146,-480.0,0.00018487,2]
[382452489,1756629049156,-480.66157567,0.00018487,2]
[382452490,1756629049166,-480.0,0.00018487,2]
[382452491,1756629049175,-1656.99,0.00018487,2]
[382452492,1756629049185,-612.27,0.00018487,2]
[382452493,1756629049195,-480.0,0.00018487,2]
[382452494,1756629049204,-480.0,0.00018487,2]
[382452495,1756629049214,-480.0,0.00018487,2]
[382452496,1756629049224,-514.13606545,0.00018487,2]
[382452497,1756629049234,-480.0,0.00018487,2]
[382452498,1756629049243,-480.0,0.00018487,2]
[382452499,1756629049255,-823.79,0.00018487,2]
[382452500,1756629049265,-480.0,0.00018487,2]
[382452501,1756629049275,-704.13,0.00018487,2]
[382452502,1756629049284,-482.15,0.00018487,2]
[382452503,1756629049294,-481.54609715,0.00018487,2]
[382452504,1756629049305,-482.04068696,0.00018487,2]
[382452505,1756629049314,-480.0,0.00018487,2]
[382452506,1756629049323,-480.0,0.00018487,2]
[382452507,1756629049335,-480.0,0.00018487,2]
[382452508,1756629049344,-480.0,0.00018487,2]
[382452509,1756629049353,-480.0,0.00018487,2]
[382452510,1756629049363,-480.0,0.00018487,2]
[382452511,1756629049372,-481.44653893,0.00018487,2]
[382452512,1756629049382,-480.96652292,0.00018487,2]
[382452513,1756629049391,-481.43493622,0.00018487,2]
[382452514,1756629049400,-480.0,0.00018487,2]
[382452515,1756629049410,-184.9029443,0.00018487,2]
[382452516,1756629049420,-1925.71,0.00018487,2]
[382452517,1756629049430,-195.79120078,0.00018487,2]
[382452518,1756629049439,-480.0,0.00018487,2]
[382452519,1756629049449,-480.0,0.00018487,2]
[382452520,1756629049458,-312.04407776,0.00018487,2]
[382452521,1756629049467,-480.99301321,0.00018487,2]
[382452522,1756629049477,-480.34836525,0.00018487,2]
[382452523,1756629049486,-480.52070699,0.00018487,2]
[382452524,1756629049496,-480.0,0.00018487,2]
[382452525,1756629049505,-480.0,0.00018487,2]
[382452526,1756629049514,-480.0,0.00018487,2]
[382452527,1756629049525,-480.0,0.00018487,2]
[382452528,1756629049534,-480.0,0.00018487,2]
[382452529,1756629049543,-151.0,0.00018487,2]
[382452530,1756629049552,-151.0,0.00018487,2]
[382452531,1756629049562,-151.0,0.00018487,2]
[382452532,1756629049571,-1810.38,0.00018487,2]
[382452533,1756629049581,-481.36898026,0.00018487,2]
[382452534,1756629049591,-480.0,0.00018487,2]
[382452535,1756629049601,-480.0,0.00018487,2]
[382452536,1756629049612,-480.0,0.00018487,2]
[382452537,1756629049621,-480.0,0.00018487,2]
[382452538,1756629049631,-480.0,0.00018487,2]
[382452539,1756629049641,-480.0,0.00018487,2]
[382452540,1756629049650,-480.0,0.00018487,2]
[382452541,1756629049660,-480.0,0.00018487,2]
[382452542,1756629049668,-480.0,0.00018487,2]
[382452543,1756629049677,-495.12,0.00018487,2]
[382452544,1756629049686,-480.0,0.00018487,2]
[382452545,1756629049695,-481.08889328,0.00018487,2]
[382452546,1756629049705,-480.0,0.00018487,2]
[382452547,1756629049715,-597.67,0.00018487,2]
[382452548,1756629049724,-480.48906538,0.00018487,2]
[382452549,1756629049734,-480.9198358,0.00018487,2]
[382452550,1756629049743,-596.85,0.00018487,2]
[382452551,1756629049752,-481.92559191,0.00018487,2]
[382452552,1756629049762,-480.0,0.00018487,2]
[382452553,1756629049771,-480.0,0.00018487,2]
[382452554,1756629049781,-1153.32,0.00018487,2]
[382452555,1756629049792,-481.90098556,0.00018487,2]
[382452556,1756629049802,-480.0,0.00018487,2]
[382452557,1756629049811,-521.36328549,0.00018487,2]
[382452558,1756629049822,-481.05227837,0.00018487,2]
[382452559,1756629049832,-541.87,0.00018487,2]
[382452560,1756629049843,-480.0,0.00018487,2]
[382452561,1756629049854,-918.77,0.00018487,2]
[382452562,1756629049865,-557.92,0.00018487,2]
[382452563,1756629049875,-408.52758583,0.00018487,2]
[382452564,1756629049884,-482.63025818,0.00018487,2]
[382452565,1756629049894,-480.0,0.00018487,2]
[382452566,1756629049905,-480.0,0.00018487,2]
[382452567,1756629049916,-480.0,0.00018487,2]
[382452568,1756629049928,-480.0,0.00018487,2]
[382452569,1756629049938,-480.0,0.00018487,2]
[382452570,1756629049949,-964.09,0.00018487,2]
[382452571,1756629049958,-480.0,0.00018487,2]
[382452572,1756629049967,-480.0,0.00018487,2]
[382452573,1756629049976,-480.0,0.00018487,2]
[382452574,1756629049986,-480.0,0.00018487,2]
[382452575,1756629049995,-525.7,0.00018487,2]
[382452576,1756629050005,-480.0,0.00018487,2]
[382452577,1756629050015,-480.0,0.00018487,2]
[382452578,1756629050026,-481.62585923,0.00018487,2]
[382452579,1756629050164,-1178.91,0.00018487,2]
[382452580,1756629050190,-562.12,0.00018487,2]
[382452581,1756629050200,-500.0,0.00018487,2]
[382452582,1756629050210,-480.0,0.00018487,2]
[382452583,1756629050222,-480.0,0.00018487,2]
[382452584,1756629050232,-500.0,0.00018487,2]
[382452585,1756629050242,-500.0,0.00018487,2]
[382452586,1756629050253,-500.0,0.00018487,2]
[382452587,1756629050264,-500.0,0.00018487,2]
[382452588,1756629050274,-500.0,0.00018487,2]
[382452589,1756629050283,-500.0,0.00018487,2]
[382452590,1756629050293,-500.0,0.00018487,2]
[382452591,1756629050302,-480.0,0.00018487,2]
[382452592,1756629050312,-151.0,0.00018487,2]
[382452593,1756629050321,-151.0,0.00018487,2]
[382452594,1756629050331,-480.0,0.00018487,2]
[382452595,1756629050340,-1315.21,0.00018487,2]
[382452596,1756629050350,-480.0,0.00018487,2]
[382452597,1756629050360,-480.0,0.00018487,2]
[382452598,1756629050369,-480.0,0.00018487,2]
[382452599,1756629050379,-480.0,0.00018487,2]
[382452600,1756629050388,-480.0,0.00018487,2]
[382452601,1756629050398,-803.84,0.00018487,2]
[382452602,1756629050407,-627.42049737,0.00018487,2]
[382452603,1756629050416,-481.13331619,0.00018487,2]
[382452604,1756629050426,-487.10998861,0.00018487,2]
[382452605,1756629050435,-1618.95,0.00018487,2]
[382452606,1756629050445,-480.0,0.00018487,2]
[382452607,1756629050454,-480.0,0.00018487,2]
[382452608,1756629050463,-588.74,0.00018487,2]
[382452609,1756629050473,-480.0,0.00018487,2]
[382452610,1756629050482,-480.0,0.00018487,2]
[382452611,1756629050491,-480.0,0.00018487,2]
[382452612,1756629050500,-480.0,0.00018487,2]
[382452613,1756629050510,-480.0,0.00018487,2]
[382452614,1756629050519,-480.74670777,0.00018487,2]
[382452615,1756629050528,-1224.05,0.00018487,2]
[382452616,1756629050537,-484.12244598,0.00018487,2]
[382452617,1756629050546,-480.0,0.00018487,2]
[382452618,1756629050555,-480.0,0.00018487,2]
[382452619,1756629050565,-480.0,0.00018487,2]
[382452620,1756629050574,-610.78,0.00018487,2]
[382452621,1756629050583,-480.0,0.00018487,2]
[382452622,1756629050592,-480.0,0.00018487,2]
[382452623,1756629050602,-481.57329626,0.00018487,2]
[382452624,1756629050611,-481.61720472,0.00018487,2]
[382452625,1756629050621,-480.0,0.00018487,2]
[382452626,1756629050632,-482.60904556,0.00018487,2]
[382452627,1756629050642,-480.0,0.00018487,2]
[382452628,1756629050653,-359.94579656,0.00018487,2]
[382452629,1756629050663,-480.0,0.00018487,2]
[382452630,1756629050675,-496.82,0.00018487,2]
[382452631,1756629050684,-482.9910861,0.00018487,2]
[382452632,1756629050697,-480.0,0.00018487,2]
[382452633,1756629050707,-480.0,0.00018487,2]
[382452634,1756629050719,-429.51001574,0.00018487,2]
[382452635,1756629050730,-633.64,0.00018487,2]
[382452636,1756629050741,-480.33404082,0.00018487,2]
[382452637,1756629050750,-480.0,0.00018487,2]
[382452638,1756629050761,-651.92,0.00018487,2]
[382452639,1756629050772,-714.35,0.00018487,2]
[382452640,1756629050782,-480.0,0.00018487,2]
[382452641,1756629050792,-481.62854288,0.00018487,2]
[382452642,1756629050803,-480.0,0.00018487,2]
[382452643,1756629050813,-481.73298373,0.00018487,2]
[382452644,1756629050824,-480.0,0.00018487,2]
[382452645,1756629050835,-480.94812762,0.00018487,2]
[382452646,1756629050844,-480.0,0.00018487,2]
[382452647,1756629050854,-480.0,0.00018487,2]
[382452648,1756629050864,-480.0,0.00018487,2]
[382452649,1756629050876,-617.3,0.00018487,2]
[382452650,1756629050886,-480.0,0.00018487,2]
[382452651,1756629050897,-480.0,0.00018487,2]
[382452652,1756629050907,-480.0,0.00018487,2]
[382452653,1756629050916,-480.0,0.00018487,2]
[382452654,1756629050927,-480.0,0.00018487,2]
[382452655,1756629050938,-480.0,0.00018487,2]
[382452656,1756629050947,-480.0,0.00018487,2]
[382452657,1756629050958,-480.0,0.00018487,2]
[382452658,1756629050968,-1618.2,0.00018487,2]
[382452659,1756629050979,-755.27,0.00018487,2]
[382452660,1756629050988,-480.0,0.00018487,2]
[382452661,1756629050999,-480.0,0.00018487,2]
[382452662,1756629051008,-151.0,0.00018488,2]
[382452663,1756629051018,-160.0,0.0001849,2]
[382452664,1756629051029,-160.0,0.0001849,2]
[382452665,1756629051040,-425.75173308,0.0001849,2]
[382452666,1756629051051,-845.95363151,0.0001849,2]
[382452667,1756629051061,-232.78794292,0.0001849,2]
[382452668,1756629051071,-216.30436082,0.0001849,2]
[382452669,1756629051080,-160.0,0.0001849,2]
[382452670,1756629051090,-160.0,0.0001849,2]
[382452671,1756629051100,-530.02580203,0.0001849,2]
[382452672,1756629051110,-417.15472785,0.0001849,2]
[382452673,1756629051119,-11364.23969824,0.00018492,2]
[382452674,1756629051128,-217.4012883,0.00018492,2]
[382452675,1756629051138,-160.0,0.00018492,2]
[382452676,1756629051148,-160.0,0.00018492,2]
[382452677,1756629051158,-500.0,0.00018498,2]
[382452678,1756629051167,-500.0,0.00018498,2]
[382452679,1756629051176,-500.0,0.00018498,2]
[382452680,1756629051186,-500.0,0.00018498,2]
[382452681,1756629051195,-357.68006755,0.00018498,2]
[382452682,1756629051204,-500.0,0.00018498,2]
[382452683,1756629051214,-500.0,0.00018498,2]
[382452684,1756629051223,-500.0,0.00018498,2]
[382452685,1756629051234,-500.0,0.00018498,2]
[382452686,1756629051244,-500.0,0.00018498,2]
[382452687,1756629051259,-500.0,0.00018499,2]
[382452688,1756629051268,-480.88210762,0.00018499,2]
[382452689,1756629051278,-500.0,0.00018499,2]
[382452690,1756629051287,-480.0,0.00018499,2]
[382452691,1756629051298,-429.28697554,0.00018499,2]
[382452692,1756629051307,-480.0,0.00018499,2]
[382452693,1756629051317,-480.0,0.00018499,2]
[382452694,1756629051327,-200.09124949,0.00018499,2]
[382452695,1756629051337,-527.46297869,0.00018499,2]
[382452696,1756629051346,-251.57429182,0.00018499,2]
[382452697,1756629051357,-480.0,0.00018499,2]
[382452698,1756629051367,-480.0,0.00018499,2]
[382452699,1756629051377,-480.0,0.00018499,2]
[382452700,1756629051387,-480.0,0.00018499,2]
[382452701,1756629051396,-480.0,0.00018499,2]
[382452702,1756629051405,-481.11395908,0.00018499,2]
[382452703,1756629051415,-480.0,0.00018499,2]
[382452704,1756629051424,-482.06899768,0.00018499,2]
[382452705,1756629051433,-500.8,0.00018499,2]
[382452706,1756629051442,-172.26568908,0.00018499,2]
[382452707,1756629051451,-873.09,0.00018499,2]
[382452708,1756629051460,-480.0,0.00018499,2]
[382452709,1756629051470,-480.0,0.00018499,2]
[382452710,1756629051479,-480.0,0.00018499,2]
[382452711,1756629051488,-480.82174575,0.00018499,2]
[382452712,1756629051497,-480.0,0.00018499,2]
[382452713,1756629051507,-482.51153596,0.00018499,2]
[382452714,1756629051516,-480.0,0.00018499,2]
[382452715,1756629051526,-480.0,0.00018499,2]
[382452716,1756629051535,-480.0,0.00018499,2]
[382452717,1756629051544,-480.0,0.00018499,2]
[382452718,1756629051554,-480.0,0.00018499,2]
[382452719,1756629051564,-480.0,0.00018499,2]
[382452720,1756629051573,-502.22,0.00018499,2]
[382452721,1756629051582,-950.55,0.00018499,2]
[382452722,1756629051591,-482.19090903,0.00018499,2]
[382452723,1756629051600,-482.93411215,0.00018499,2]
[382452724,1756629051610,-670.14,0.00018499,2]
[382452725,1756629051619,-480.0,0.00018499,2]
[382452726,1756629051628,-480.0,0.00018499,2]
[382452727,1756629051638,-480.0,0.00018499,2]
[382452728,1756629051647,-480.0,0.00018499,2]
[382452729,1756629051657,-480.0,0.00018499,2]
[382452730,1756629051666,-480.0,0.00018499,2]
[382452731,1756629051675,-480.35440923,0.00018499,2]
[382452732,1756629051684,-599.82,0.00018499,2]
[382452733,1756629051694,-480.0,0.00018499,2]
[382452734,1756629051703,-480.0,0.00018499,2]
[382452735,1756629051713,-606.96,0.00018499,2]
[382452736,1756629051722,-480.0,0.00018499,2]
[382452737,1756629051734,-500.0,0.00018499,2]
[382452738,1756629051744,-500.0,0.00018499,2]
[382452739,1756629051757,-480.0,0.00018499,2]
[382452740,1756629051767,-480.0,0.00018499,2]
[382452741,1756629051776,-484.34226518,0.00018499,2]
[382452742,1756629051788,-481.3725198,0.00018499,2]
[382452743,1756629051799,-480.0,0.00018499,2]
[382452744,1756629051810,-704.76,0.00018499,2]
[382452745,1756629051821,-481.30137672,0.00018499,2]
[382452746,1756629051832,-480.0,0.00018499,2]
[382452747,1756629051843,-480.0,0.00018499,2]
[382452748,1756629051852,-736.34,0.00018499,2]
[382452749,1756629051863,-480.0,0.00018499,2]
[382452750,1756629051872,-1000.0,0.00018499,2]
[382452751,1756629051882,-480.0,0.00018499,2]
[382452752,1756629051891,-480.0,0.00018499,2]
[382452753,1756629051901,-480.04957299,0.00018499,2]
[382452754,1756629051913,-480.0,0.00018499,2]
[382452755,1756629051924,-480.0,0.00018499,2]
[382452756,1756629051934,-480.0,0.00018499,2]
[382452757,1756629051943,-480.0,0.00018499,2]
[382452758,1756629051955,-480.0,0.00018499,2]
[382452759,1756629051967,-480.0,0.00018499,2]
[382452760,1756629051978,-480.0,0.00018499,2]
[382452761,1756629051988,-480.0,0.00018499,2]
[382452762,1756629051999,-905.15,0.00018499,2]
[382452763,1756629052010,-480.0,0.00018499,2]
[382452764,1756629052022,-546.83032019,0.00018499,2]
[382452765,1756629052031,-480.0,0.00018499,2]
[382452766,1756629052042,-480.0,0.00018499,2]
[382452767,1756629052052,-480.0,0.00018499,2]
[382452768,1756629052064,-501.63,0.00018499,2]
[382452769,1756629052074,-480.0,0.00018499,2]
[382452770,1756629052085,-480.0,0.00018499,2]
[382452771,1756629052097,-480.68595193,0.00018499,2]
[382452772,1756629052106,-480.0,0.00018499,2]
[382452773,1756629052117,-162.73498983,0.00018499,2]
[382452774,1756629052582,-317.26501017,0.00018499,2]
[382452775,1756629052591,-59.41498983,0.00018499,2]
[382452776,1756629052603,-1067.22501017,0.00018499,2]
[382452777,1756629052612,-480.0,0.00018499,2]
[382452778,1756629052621,-480.0,0.00018499,2]
[382452779,1756629052631,-608.34,0.00018499,2]
[382452780,1756629052640,-480.0,0.00018499,2]
[382452781,1756629052649,-461.99898704,0.00018499,2]
[382452782,1756629052659,-480.0,0.00018499,2]